bitfinex-derivatives/quotes_BTCF0:USTF0_20250510
["timestamp","ask_amount","ask_price","bid_price","bid_amount"]
[1746855698434,0.7592002,103290.0,103280.0,0.80325456]
[1746855699236,0.7592002,103290.0,103280.0,0.99689316]
[1746855701138,0.7592002,103290.0,103280.0,0.63609316]
[1746855701337,0.7592002,103290.0,103280.0,0.99689316]
[1746855703441,1.1200002,103290.0,103280.0,0.63609316]
[1746855703742,0.7592002,103290.0,103280.0,0.99689316]
[1746855704331,0.6913002,103290.0,103280.0,1.04414557]
[1746855705143,0.5253002,103290.0,103280.0,1.04414557]
[1746855706144,0.5253002,103290.0,103280.0,0.68334557]
[1746855706447,0.5253002,103290.0,103280.0,1.04414557]
[1746855706842,0.59010033,103290.0,103280.0,1.04414557]
[1746855708945,0.59010033,103290.0,103280.0,0.68334557]
[1746855709146,0.59010033,103290.0,103280.0,1.04414557]
[1746855711646,0.59010033,103290.0,103280.0,0.99689316]
[1746855712147,0.75610033,103290.0,103280.0,0.99689316]
[1746855714644,0.82180033,103290.0,103280.0,0.99689316]
[1746855716346,0.82180033,103290.0,103280.0,0.88037316]
[1746855717540,0.75709375,103290.0,103280.0,0.88037316]
[1746855720261,0.75709375,103290.0,103280.0,0.51957316]
[1746855720560,0.75709375,103290.0,103280.0,0.88037316]
[1746855723958,0.80434616,103290.0,103280.0,0.68673456]
[1746855724165,1.03434616,103290.0,103280.0,0.32593456]
[1746855725362,1.19781835,103290.0,103280.0,0.32593456]
[1746855727760,1.19781835,103290.0,103280.0,0.51957316]
[1746855727967,1.15056594,103290.0,103280.0,0.51957316]
[1746855728264,1.15056594,103290.0,103280.0,0.88037316]
[1746855728656,1.11055251,103290.0,103280.0,0.51957316]
[1746855729264,1.04485251,103290.0,103280.0,0.92762557]
[1746855729465,1.04485251,103290.0,103280.0,0.88037316]
[1746855731774,0.81485251,103290.0,103280.0,0.88037316]
[1746855732771,0.69139375,103290.0,103280.0,0.92762557]
[1746855733159,0.52539375,103290.0,103280.0,0.92762557]
[1746855737870,0.52539375,103290.0,103280.0,0.88037316]
[1746855738069,0.73864616,103290.0,103280.0,0.68673456]
[1746855738370,1.01524616,103290.0,103280.0,0.68673456]
[1746855741770,1.01524616,103290.0,103280.0,0.32593456]
[1746855744471,1.01524616,103290.0,103280.0,0.88037316]
[1746855744671,1.01524616,103290.0,103280.0,0.51957316]
[1746855745273,0.96799375,103290.0,103280.0,0.51957316]
[1746855749474,0.96799375,103290.0,103280.0,0.32593456]
[1746855751972,1.01524616,103290.0,103280.0,0.32593456]
[1746855753279,0.96799375,103290.0,103280.0,0.32593456]
[1746855754080,1.01524616,103290.0,103280.0,0.32593456]
[1746855756784,1.07995555,103290.0,103280.0,0.32593456]
[1746855759388,0.91648221,103290.0,103280.0,0.32593456]
[1746855763079,1.27728221,103290.0,103280.0,0.32593456]
[1746855763278,1.37605199,103290.0,103280.0,0.32593456]
[1746855766191,1.01525199,103290.0,103280.0,0.32593456]
[1746855767188,1.37605199,103290.0,103280.0,0.32593456]
[1746855772591,1.18230199,103290.0,103280.0,0.32593456]
[1746855772796,1.37605199,103290.0,103280.0,0.32593456]
[1746855773696,0.90139958,103290.0,103280.0,0.88037316]
[1746855774099,0.73539958,103290.0,103280.0,0.88037316]
[1746855776097,0.52539958,103290.0,103280.0,0.88037316]
[1746855777292,0.69139958,103290.0,103280.0,0.88037316]
[1746855787112,0.52539958,103290.0,103280.0,0.88037316]
[1746855789312,0.33164958,103290.0,103280.0,0.88037316]
[1746855789611,0.52539958,103290.0,103280.0,0.88037316]
[1746855790113,0.69139958,103290.0,103280.0,0.88037316]
[1746855791914,0.85487205,103290.0,103280.0,0.88037316]
[1746855792114,0.68887205,103290.0,103280.0,0.88037316]
[1746855798011,0.68887205,103290.0,103280.0,0.92762557]
[1746855798318,0.68887205,103290.0,103280.0,1.09362557]
[1746855800711,0.59010227,103290.0,103280.0,1.09362557]
[1746855804923,0.4266298,103290.0,103280.0,1.09362557]
[1746855806520,0.4266298,103290.0,103280.0,1.04637316]
[1746855807127,0.4266298,103290.0,103280.0,0.88037316]
[1746855809327,0.4607298,103290.0,103280.0,0.88037316]
[1746855809525,0.55949882,103290.0,103280.0,0.88037316]
[1746855811129,0.59159882,103290.0,103280.0,0.88037316]
[1746855813432,0.63885123,103290.0,103280.0,0.88037316]
[1746855816135,0.80485123,103290.0,103280.0,0.88037316]
[1746855819137,0.63885123,103290.0,103280.0,0.88037316]
[1746855820236,0.80485123,103290.0,103280.0,0.88037316]
[1746855821135,0.63885123,103290.0,103280.0,0.88037316]
[1746855822136,0.80485123,103290.0,103280.0,0.88037316]
[1746855822323,0.81485123,103290.0,103280.0,0.88037316]
[1746855823136,0.64885123,103290.0,103280.0,0.88037316]
[1746855825438,0.60159882,103290.0,103280.0,0.88037316]
[1746855827145,0.76759882,103290.0,103280.0,0.88037316]
[1746855828147,0.60159882,103290.0,103280.0,0.88037316]
[1746855833242,0.53539882,103290.0,103280.0,0.88037316]
[1746855838452,0.60010126,103290.0,103280.0,0.88037316]
[1746855842248,0.4366298,103290.0,103280.0,0.88037316]
[1746855844155,0.4266298,103290.0,103280.0,0.88037316]
[1746855844362,0.4266298,103290.0,103280.0,0.92762557]
[1746855847768,0.4266298,103290.0,103280.0,0.88037316]
[1746855847970,0.4922298,103290.0,103280.0,0.88037316]
[1746855850369,0.4922298,103290.0,103280.0,0.51957316]
[1746855852475,0.59098702,103290.0,103280.0,0.51957316]
[1746855854072,0.55868702,103290.0,103280.0,0.51957316]
[1746855854669,0.52538702,103290.0,103280.0,0.51957316]
[1746855854868,0.52538702,103290.0,103280.0,0.56682557]
[1746855855777,0.52538702,103290.0,103280.0,0.51957316]
[1746855858479,0.64884578,103290.0,103280.0,0.51957316]
[1746855860378,0.64884578,103290.0,103280.0,0.88037316]
[1746855861173,0.71354578,103290.0,103280.0,0.88037316]
[1746855863078,0.59008702,103290.0,103280.0,0.88037316]
[1746855863683,0.52538702,103290.0,103280.0,0.88037316]
[1746855863983,0.52538702,103290.0,103280.0,0.92762557]
[1746855864284,0.33163702,103290.0,103280.0,1.09362557]
[1746855864484,0.52538702,103290.0,103280.0,1.09362557]
[1746855865187,0.52538702,103290.0,103280.0,1.09562557]
[1746855865979,0.33163702,103290.0,103280.0,1.09562557]
[1746855866183,0.33163702,103290.0,103280.0,1.09762557]
[1746855871190,0.33163702,103290.0,103280.0,0.93162557]
[1746855871390,0.33163702,103290.0,103280.0,0.57082557]
[1746855871689,0.33163702,103290.0,103280.0,0.93162557]
[1746855872490,0.52538702,103290.0,103280.0,0.93162557]
[1746855879095,0.52538702,103290.0,103280.0,0.93062557]
[1746855880599,0.52538702,103290.0,103280.0,0.92862557]
[1746855886804,0.52538702,103290.0,103280.0,0.68773456]
[1746855886998,0.59388702,103290.0,103280.0,0.99729316]
[1746855887193,1.30793943,103290.0,103280.0,0.29435456]
[1746855887400,1.49793943,103290.0,103280.0,0.29435456]
[1746855888406,1.49793943,103290.0,103280.0,0.26135456]
[1746855888704,1.45068702,103290.0,103280.0,0.26135456]
[1746855888904,1.49793943,103290.0,103280.0,0.29485456]
[1746855889101,1.13713943,103290.0,103280.0,0.29485456]
[1746855889308,1.45068702,103290.0,103280.0,0.29485456]
[1746855890806,1.3519298,103290.0,103280.0,0.29485456]
[1746855891810,1.39918221,103290.0,103280.0,0.29485456]
[1746855893707,1.40018221,103290.0,103280.0,0.29485456]
[1746855894009,1.40118221,103290.0,103280.0,0.29385456]
[1746855894812,1.56465601,103290.0,103280.0,0.29385456]
[1746855897008,1.56465601,103290.0,103280.0,0.32635456]
[1746855897211,1.39865601,103290.0,103280.0,0.32635456]
[1746855898611,1.33392398,103290.0,103280.0,0.32635456]
[1746855901613,0.97312398,103290.0,103280.0,0.32635456]
[1746855902510,0.97312398,103290.0,103280.0,0.68715456]
[1746855908913,0.97312398,103290.0,103280.0,0.88079316]
[1746855909108,0.97312398,103290.0,103280.0,0.51999316]
[1746855910914,0.97312398,103290.0,103280.0,0.32635456]
[1746855911110,1.13912398,103290.0,103280.0,0.32635456]
[1746855912122,0.97312398,103290.0,103280.0,0.32635456]
[1746855916222,1.13912398,103290.0,103280.0,0.32635456]
[1746855918226,0.97312398,103290.0,103280.0,0.32635456]
[1746855922520,0.97312398,103290.0,103280.0,0.21043456]
[1746855922720,0.97312398,103290.0,103280.0,0.32627456]
[1746855923116,1.13912398,103290.0,103280.0,0.26027456]
[1746855923512,1.13912398,103290.0,103280.0,0.29227456]
[1746855923722,1.13912398,103290.0,103280.0,0.32737456]
[1746855928325,1.54717639,103290.0,103280.0,0.14443456]
[1746855928519,1.54717639,103290.0,103280.0,0.01439633]
[1746855928719,0.1936386,103280.0,103270.0,0.066]
[1746855928920,1.21934101,103280.0,103270.0,0.066]
[1746855929128,1.38534101,103280.0,103270.0,0.16281948]
[1746855931128,1.38534101,103280.0,103270.0,0.16381948]
[1746855932333,1.39260101,103280.0,103270.0,0.16381948]
[1746855932629,1.39360101,103280.0,103270.0,0.16281948]
[1746855933327,1.49234278,103280.0,103270.0,0.16281948]
[1746855933722,1.54059519,103280.0,103270.0,0.16281948]
[1746855934624,1.49334278,103280.0,103270.0,0.19511948]
[1746855936231,1.32734278,103280.0,103270.0,0.19511948]
[1746855936431,0.96654278,103280.0,103270.0,0.19511948]
[1746855945328,1.04049438,103280.0,103270.0,0.19511948]
[1746855954939,0.96654278,103280.0,103270.0,0.19511948]
[1746855960740,0.84919037,103280.0,103270.0,0.38877678]
[1746855960945,0.44544037,103280.0,103270.0,0.79682919]
[1746855961239,0.33544037,103280.0,103270.0,0.96282919]
[1746855962345,0.33544037,103280.0,103270.0,0.91557678]
[1746855963158,0.33344037,103280.0,103270.0,0.91557678]
[1746855963357,0.33344037,103280.0,103270.0,0.91657678]
[1746855965256,0.33344037,103280.0,103270.0,0.55577678]
[1746855965555,0.33344037,103280.0,103270.0,0.91657678]
[1746855967061,0.38069278,103280.0,103270.0,0.72291948]
[1746855967654,0.38069278,103280.0,103270.0,0.91657678]
[1746855969259,0.38069278,103280.0,103270.0,0.55577678]
[1746855969460,0.38069278,103280.0,103270.0,0.91657678]
[1746855970363,0.57444278,103280.0,103270.0,0.91657678]
[1746855970964,0.57444278,103280.0,103270.0,0.55577678]
[1746855971152,0.57444278,103280.0,103270.0,0.91657678]
[1746855972863,0.38069278,103280.0,103270.0,0.91657678]
[1746855973059,0.57444278,103280.0,103270.0,0.91657678]
[1746855973259,0.57444278,103280.0,103270.0,0.75057678]
[1746855978063,0.57444278,103280.0,103270.0,0.91657678]
[1746855978665,0.52719037,103280.0,103270.0,0.91657678]
[1746855978876,0.52719037,103280.0,103270.0,0.96382919]
[1746855979066,0.55190736,103280.0,103270.0,0.96382919]
[1746855979263,0.36437571,103280.0,103270.0,1.07958919]
[1746855979578,0.36437571,103280.0,103270.0,1.44038919]
[1746855981657,0.36437571,103280.0,103270.0,1.39313678]
[1746855981860,0.39647571,103280.0,103270.0,1.03233678]
[1746855982065,0.39647571,103280.0,103270.0,0.91657678]
[1746855982273,0.44372812,103280.0,103270.0,1.03233678]
[1746855982567,0.44372812,103280.0,103270.0,0.83867948]
[1746855982866,0.50922812,103280.0,103270.0,0.83867948]
[1746855983370,0.50922812,103280.0,103270.0,0.67267948]
[1746855983371,0.34575101,103280.0,103270.0,0.67267948]
[1746855984071,0.34575101,103280.0,103270.0,0.86633678]
[1746855985573,0.53950101,103280.0,103270.0,0.86633678]
[1746855985967,0.71224565,103280.0,103270.0,0.86633678]
[1746855991369,0.66499324,103280.0,103270.0,0.86633678]
[1746855994178,0.66499324,103280.0,103270.0,0.98205678]
[1746856000582,0.66499324,103280.0,103270.0,0.86629678]
[1746856001790,0.59949324,103280.0,103270.0,0.86629678]
[1746856002084,0.59949324,103280.0,103270.0,0.91354919]
[1746856005378,0.59949324,103280.0,103270.0,0.86629678]
[1746856006187,0.59949324,103280.0,103270.0,1.03229678]
[1746856008286,0.59949324,103280.0,103270.0,0.86629678]
[1746856010689,0.59949324,103280.0,103270.0,0.67263948]
[1746856010880,0.70994565,103280.0,103270.0,0.67259948]
[1746856011888,0.76994565,103280.0,103270.0,0.67259948]
[1746856012186,0.76994565,103280.0,103270.0,0.27949948]
[1746856012383,1.17799806,103280.0,103270.0,0.16381948]
[1746856012591,1.17799806,103280.0,103270.0,0.24769948]
[1746856013187,1.34399806,103280.0,103270.0,0.24769948]
[1746856014193,1.26996464,103280.0,103270.0,0.24769948]
[1746856014786,1.26996464,103280.0,103270.0,0.13201948]
[1746856015785,1.26996464,103280.0,103270.0,0.16351948]
[1746856017292,1.33473223,103280.0,103270.0,0.16351948]
[1746856017793,1.27473223,103280.0,103270.0,0.16351948]
[1746856017983,1.61473223,103280.0,103270.0,0.16351948]
[1746856019492,1.61473223,103280.0,103270.0,0.13201948]
[1746856021196,1.45125342,103280.0,103270.0,0.13201948]
[1746856021994,1.45125342,103280.0,103270.0,0.13101948]
[1746856022193,1.45325342,103280.0,103270.0,0.13101948]
[1746856022396,1.45325342,103280.0,103270.0,0.16191948]
[1746856022586,1.45325342,103280.0,103270.0,0.19301948]
[1746856022897,1.40600101,103280.0,103270.0,0.19301948]
[1746856023091,1.24000101,103280.0,103270.0,0.19301948]
[1746856024591,1.33868987,103280.0,103270.0,0.19301948]
[1746856026098,1.38594228,103280.0,103270.0,0.19301948]
[1746856026699,1.45073272,103280.0,103270.0,0.19301948]
[1746856029311,1.25698272,103280.0,103270.0,0.19301948]
[1746856029504,1.45073272,103280.0,103270.0,0.19301948]
[1746856039116,1.40348031,103280.0,103270.0,0.19301948]
[1746856041814,1.45073272,103280.0,103270.0,0.19301948]
[1746856055527,1.3562279,103280.0,103270.0,0.19301948]
[1746856055727,1.45073272,103280.0,103270.0,0.19301948]
[1746856060031,1.59787889,103280.0,103270.0,0.19301948]
[1746856063730,1.45073272,103280.0,103270.0,0.19301948]
[1746856077630,1.41071218,103280.0,103270.0,0.19301948]
[1746856081126,1.36345977,103280.0,103270.0,0.19301948]
[1746856081741,1.36345977,103280.0,103270.0,0.30861948]
[1746856081935,1.31620736,103280.0,103270.0,0.30861948]
[1746856082243,1.00265977,103280.0,103270.0,0.30861948]
[1746856083137,0.67265977,103280.0,103270.0,0.30861948]
[1746856083446,0.71991218,103280.0,103270.0,0.30861948]
[1746856084334,0.67265977,103280.0,103270.0,0.30861948]
[1746856086344,0.71268004,103280.0,103270.0,0.30861948]
[1746856088253,0.75993245,103280.0,103270.0,0.30861948]
[1746856089549,0.75993245,103280.0,103270.0,0.19301948]
[1746856092252,0.66542763,103280.0,103270.0,0.19301948]
[1746856092452,0.75993245,103280.0,103270.0,0.19301948]
[1746856095155,0.75993245,103280.0,103270.0,0.35901948]
[1746856095345,0.71268004,103280.0,103270.0,0.35901948]
[1746856096253,0.71268004,103280.0,103270.0,0.19301948]
[1746856097549,1.07348004,103280.0,103270.0,0.19301948]
[1746856099250,1.12073245,103280.0,103270.0,0.19301948]
[1746856111766,1.01028004,103280.0,103270.0,0.19301948]
[1746856112266,1.04228004,103280.0,103270.0,0.19301948]
[1746856112565,1.07508004,103280.0,103270.0,0.19301948]
[1746856112867,1.12233245,103280.0,103270.0,0.19301948]
[1746856121277,1.07508004,103280.0,103270.0,0.19301948]
[1746856122278,1.09876745,103280.0,103270.0,0.19301948]
[1746856126583,0.95162128,103280.0,103270.0,0.19301948]
[1746856130185,0.95162128,103280.0,103270.0,0.35901948]
[1746856131079,0.95162128,103280.0,103270.0,0.19301948]
[1746856134789,0.99887369,103280.0,103270.0,0.19301948]
[1746856145995,1.26887369,103280.0,103270.0,0.19301948]
[1746856147693,1.26787369,103280.0,103270.0,0.19301948]
[1746856147900,1.27087369,103280.0,103270.0,0.19301948]
[1746856148303,1.26987369,103280.0,103270.0,0.19301948]
[1746856148596,1.27287369,103280.0,103270.0,0.19301948]
[1746856150303,1.27287369,103280.0,103270.0,0.16191948]
[1746856153397,1.27287369,103280.0,103270.0,0.19381948]
[1746856154305,0.91207369,103280.0,103270.0,0.19381948]
[1746856154498,1.27287369,103280.0,103270.0,0.19381948]
[1746856159612,1.39634837,103280.0,103270.0,0.19381948]
[1746856162111,1.56234837,103280.0,103270.0,0.19381948]
[1746856162910,1.58601986,103280.0,103270.0,0.19381948]
[1746856163111,1.42001986,103280.0,103270.0,0.19381948]
[1746856164111,1.58601986,103280.0,103270.0,0.19381948]
[1746856165309,1.42001986,103280.0,103270.0,0.19381948]
[1746856167313,1.27287369,103280.0,103270.0,0.19381948]
[1746856170413,1.3963399,103280.0,103270.0,0.19381948]
[1746856190827,1.30183508,103280.0,103270.0,0.19381948]
[1746856191029,1.11908749,103280.0,103270.0,0.19381948]
[1746856191733,1.1663399,103280.0,103270.0,0.19381948]
[1746856194329,1.1663399,103280.0,103270.0,0.35981948]
[1746856195234,1.1663399,103280.0,103270.0,0.19381948]
[1746856197536,1.12631963,103280.0,103270.0,0.19381948]
[1746856201631,0.70071963,103280.0,103270.0,0.19381948]
[1746856201834,0.65346722,103280.0,103270.0,0.19381948]
[1746856202027,1.01426722,103280.0,103270.0,0.19381948]
[1746856202229,1.06151963,103280.0,103270.0,0.19381948]
[1746856202929,1.12391963,103280.0,103270.0,0.19381948]
[1746856203228,1.12091963,103280.0,103270.0,0.19381948]
[1746856204128,1.11791963,103280.0,103270.0,0.19381948]
[1746856205341,1.11991963,103280.0,103270.0,0.19381948]
[1746856205530,1.12191963,103280.0,103270.0,0.19381948]
[1746856206641,1.05951963,103280.0,103270.0,0.19381948]
[1746856206841,1.01226722,103280.0,103270.0,0.19381948]
[1746856207235,1.05228807,103280.0,103270.0,0.35981948]
[1746856208039,1.05028807,103280.0,103270.0,0.35981948]
[1746856208336,1.09554048,103280.0,103270.0,0.19381948]
[1746856209532,1.15784048,103280.0,103270.0,0.19381948]
[1746856211737,1.30498665,103280.0,103270.0,0.19381948]
[1746856214343,1.25773424,103280.0,103270.0,0.19381948]
[1746856214539,1.13426803,103280.0,103270.0,0.19381948]
[1746856215435,1.18152044,103280.0,103270.0,0.19381948]
[1746856216544,1.13426803,103280.0,103270.0,0.19381948]
[1746856217148,1.18152044,103280.0,103270.0,0.19381948]
[1746856217947,1.03437427,103280.0,103270.0,0.19381948]
[1746856218451,1.03437427,103280.0,103270.0,0.30909948]
[1746856218652,1.03437427,103280.0,103270.0,0.19381948]
[1746856221847,1.15785507,103280.0,103270.0,0.19381948]
[1746856225948,1.09313991,103280.0,103270.0,0.19381948]
[1746856228854,1.03083991,103280.0,103270.0,0.19381948]
[1746856229151,1.03083991,103280.0,103270.0,0.30901948]
[1746856229352,0.81453181,103280.0,103270.0,0.30901948]
[1746856231358,1.00828181,103280.0,103270.0,0.30901948]
[1746856233259,1.04830248,103280.0,103270.0,0.30901948]
[1746856233859,1.00105007,103280.0,103270.0,0.30901948]
[1746856234052,1.04830248,103280.0,103270.0,0.30901948]
[1746856236047,1.04830248,103280.0,103270.0,0.47501948]
[1746856237157,1.04830248,103280.0,103270.0,0.30901948]
[1746856242658,0.85455248,103280.0,103270.0,0.30901948]
[1746856242961,1.04830248,103280.0,103270.0,0.30901948]
[1746856243364,1.11280248,103280.0,103270.0,0.30901948]
[1746856247164,1.06555007,103280.0,103270.0,0.30901948]
[1746856247365,1.11280248,103280.0,103270.0,0.30901948]
[1746856250764,0.22076147,103280.0,103270.0,1.02588919]
[1746856250966,0.36440007,103280.0,103270.0,1.02588919]
[1746856251268,0.36440007,103280.0,103270.0,1.19188919]
[1746856253468,0.39620007,103280.0,103270.0,1.19188919]
[1746856254266,0.39620007,103280.0,103270.0,1.14463678]
[1746856254969,0.30675577,103280.0,103270.0,1.14463678]
[1746856257169,0.35400818,103280.0,103270.0,1.14463678]
[1746856258266,0.35400818,103280.0,103270.0,0.97863678]
[1746856259171,0.35400818,103280.0,103270.0,1.14463678]
[1746856259878,0.35400818,103280.0,103270.0,0.62361948]
[1746856260172,0.1936949,103250.0,103240.0,0.55720327]
[1746856260375,1.19274972,103250.0,103240.0,0.21406387]
[1746856260576,1.19274972,103250.0,103230.0,0.25052816]
[1746856260577,0.1937136,103240.0,103230.0,0.25052816]
[1746856260771,1.38988842,103240.0,103230.0,0.21239456]
[1746856261266,1.55588842,103240.0,103230.0,0.21239456]
[1746856261473,0.1937324,103230.0,103220.0,0.40534794]
[1746856261670,1.27778722,103230.0,103220.0,0.37954874]
[1746856262065,1.44378722,103230.0,103220.0,0.37954874]
[1746856264878,1.44478722,103230.0,103220.0,0.0999392]
[1746856265277,1.45204722,103230.0,103220.0,0.0999392]
[1746856268578,0.1937512,103220.0,103210.0,0.1]
[1746856268777,1.40136602,103220.0,103210.0,0.1]
[1746856269079,1.56736602,103220.0,103210.0,0.19687575]
[1746856269985,1.56836602,103220.0,103210.0,0.20387575]
[1746856270187,1.56836602,103220.0,103210.0,0.21825959]
[1746856271687,1.56936602,103220.0,103210.0,0.22125959]
[1746856273885,1.56936602,103220.0,103210.0,0.12438384]
[1746856274998,1.56936602,103220.0,103210.0,0.15588384]
[1746856275893,1.56936602,103220.0,103210.0,0.18618384]
[1746856277794,1.20856602,103220.0,103210.0,0.18618384]
[1746856277995,1.93016602,103220.0,103210.0,0.18618384]
[1746856280995,1.81500602,103220.0,103210.0,0.18618384]
[1746856281190,1.93020602,103220.0,103210.0,0.18618384]
[1746856283690,1.93020602,103220.0,103210.0,0.21828384]
[1746856284501,1.88295361,103220.0,103210.0,0.21828384]
[1746856286799,1.93020602,103220.0,103210.0,0.21828384]
[1746856287298,1.76420602,103220.0,103210.0,0.21828384]
[1746856288103,1.93020602,103220.0,103210.0,0.21828384]
[1746856289303,1.73645602,103220.0,103210.0,0.21828384]
[1746856289603,1.93020602,103220.0,103210.0,0.21828384]
[1746856291401,1.97853596,103220.0,103210.0,0.21828384]
[1746856291908,1.94543596,103220.0,103210.0,0.21828384]
[1746856294905,1.89818355,103220.0,103210.0,0.21828384]
[1746856295094,1.85093114,103220.0,103210.0,0.31516898]
[1746856295297,0.68242731,103220.0,103210.0,0.55619129]
[1746856295498,0.67242731,103220.0,103210.0,0.67139129]
[1746856295700,0.67242731,103220.0,103210.0,0.62413888]
[1746856296208,0.50642731,103220.0,103210.0,0.79013888]
[1746856296804,0.55367972,103220.0,103210.0,0.79013888]
[1746856297495,0.55367972,103220.0,103210.0,0.59636898]
[1746856297696,1.48548213,103220.0,103210.0,0.48116898]
[1746856297909,1.57898213,103220.0,103210.0,0.38428384]
[1746856298107,1.48447731,103220.0,103210.0,0.38428384]
[1746856298307,1.74498213,103220.0,103210.0,0.21828384]
[1746856299305,1.55123213,103220.0,103210.0,0.21828384]
[1746856299510,1.53302744,103220.0,103210.0,0.21828384]
[1746856299902,1.48577503,103220.0,103210.0,0.21828384]
[1746856300101,1.53302744,103220.0,103210.0,0.21828384]
[1746856300911,1.24477262,103220.0,103210.0,0.21828384]
[1746856301105,1.48577503,103220.0,103210.0,0.21828384]
[1746856301807,1.43852262,103220.0,103210.0,0.21828384]
[1746856302009,1.48577503,103220.0,103210.0,0.21828384]
[1746856303513,1.51053441,103220.0,103210.0,0.21828384]
[1746856303904,1.463282,103220.0,103210.0,0.21828384]
[1746856304104,1.51053441,103220.0,103210.0,0.21828384]
[1746856304609,1.206932,103220.0,103210.0,0.21828384]
[1746856304806,0.763892,103220.0,103210.0,0.31516898]
[1746856305001,0.2914808,103220.0,103210.0,0.55619129]
[1746856305207,0.319232,103220.0,103210.0,1.12903529]
[1746856306118,0.319232,103220.0,103210.0,1.29503529]
[1746856307114,0.26979571,103220.0,103210.0,1.29503529]
[1746856307815,0.26979571,103220.0,103210.0,1.31988518]
[1746856310519,0.1957512,103220.0,103210.0,1.22300118]
[1746856311624,0.1957512,103220.0,103210.0,1.15089888]
[1746856315725,0.2030112,103220.0,103210.0,1.15089888]
[1746856316122,0.2030112,103220.0,103210.0,0.79009888]
[1746856316422,0.2030112,103220.0,103210.0,1.15089888]
[1746856317520,0.2336112,103220.0,103210.0,1.15089888]
[1746856320427,0.2030112,103220.0,103210.0,1.15089888]
[1746856320818,0.2030112,103220.0,103210.0,1.22300118]
[1746856322124,0.2020112,103220.0,103210.0,1.21600118]
[1746856322424,0.2020112,103220.0,103210.0,1.14389888]
[1746856323533,0.2020112,103220.0,103210.0,1.26189888]
[1746856323824,0.2333112,103220.0,103210.0,1.14089888]
[1746856324220,0.2333112,103220.0,103210.0,0.97489888]
[1746856325530,0.2333112,103220.0,103210.0,0.97589888]
[1746856326032,0.4270612,103220.0,103210.0,0.97589888]
[1746856331131,0.47438913,103220.0,103210.0,0.97589888]
[1746856331332,0.50518913,103220.0,103210.0,0.97589888]
[1746856332127,0.4578612,103220.0,103210.0,0.97589888]
[1746856337036,0.53190571,103220.0,103210.0,0.97589888]
[1746856337536,0.57923364,103220.0,103210.0,0.36176898]
[1746856337928,0.57923364,103220.0,103210.0,0.39396898]
[1746856338133,0.74523364,103220.0,103210.0,0.39396898]
[1746856339639,0.74523364,103220.0,103210.0,0.58773888]
[1746856339935,0.76991515,103220.0,103210.0,0.58773888]
[1746856340134,0.52883722,103220.0,103210.0,0.58773888]
[1746856340334,0.52578722,103220.0,103210.0,0.63506681]
[1746856340635,0.52578722,103220.0,103210.0,0.99586681]
[1746856340839,0.52578722,103220.0,103210.0,0.94853888]
[1746856341941,0.52578722,103220.0,103210.0,0.97973888]
[1746856342236,0.4270612,103220.0,103210.0,0.97973888]
[1746856345938,0.50110706,103220.0,103210.0,0.97973888]
[1746856347934,0.50110706,103220.0,103210.0,1.02706681]
[1746856348132,0.50110706,103220.0,103210.0,0.97973888]
[1746856348841,0.50110706,103220.0,103210.0,1.09765888]
[1746856349138,0.50110706,103220.0,103210.0,1.14498681]
[1746856350432,0.52578722,103220.0,103210.0,1.14498681]
[1746856352141,0.52578722,103220.0,103210.0,1.31098681]
[1746856353333,0.52578722,103220.0,103210.0,1.14498681]
[1746856354341,0.52578722,103220.0,103210.0,1.09765888]
[1746856356138,0.63861515,103220.0,103210.0,0.73685888]
[1746856357747,0.63861515,103220.0,103210.0,0.61893888]
[1746856358048,0.71268893,103220.0,103210.0,0.61893888]
[1746856358439,0.665361,103220.0,103210.0,0.61893888]
[1746856359849,0.599861,103220.0,103210.0,0.61893888]
[1746856361650,0.52578722,103220.0,103210.0,0.61893888]
[1746856362845,0.33203722,103220.0,103210.0,0.61893888]
[1746856363151,0.52578722,103220.0,103210.0,0.61893888]
[1746856370753,0.52578722,103220.0,103210.0,0.42516898]
[1746856371154,0.93391515,103220.0,103210.0,0.42516898]
[1746856371351,0.99841515,103220.0,103210.0,0.54224898]
[1746856372153,1.16441515,103220.0,103210.0,0.54224898]
[1746856373254,1.16441515,103220.0,103210.0,0.42516898]
[1746856373851,1.16441515,103220.0,103210.0,0.39396898]
[1746856374756,1.16441515,103220.0,103210.0,0.42586898]
[1746856377454,0.99841515,103220.0,103210.0,0.42586898]
[1746856378155,1.16441515,103220.0,103210.0,0.42586898]
[1746856379258,1.16641515,103220.0,103210.0,0.42586898]
[1746856379860,1.11908722,103220.0,103210.0,0.61963888]
[1746856380157,0.95308722,103220.0,103210.0,0.61963888]
[1746856380457,0.88858722,103220.0,103210.0,0.61963888]
[1746856380658,0.14028602,103220.0,103210.0,1.02776681]
[1746856380861,0.10898602,103220.0,103210.0,1.07509474]
[1746856381261,0.10798602,103220.0,103210.0,1.24009474]
[1746856381463,0.10698602,103220.0,103210.0,1.24109474]
[1746856381652,0.10898602,103220.0,103210.0,1.24109474]
[1746856381853,0.10898602,103220.0,103210.0,1.19376681]
[1746856382458,0.10698602,103220.0,103210.0,1.19576681]
[1746856383363,0.00826,103220.0,103210.0,1.19576681]
[1746856388362,0.00826,103220.0,103210.0,1.24309474]
[1746856388667,0.06576791,103230.0,103220.0,0.1937512]
[1746856388868,0.06576791,103230.0,103220.0,0.87467499]
[1746856389165,0.06576791,103230.0,103220.0,1.38755098]
[1746856389355,0.06576791,103230.0,103220.0,1.58443612]
[1746856389951,0.06576791,103230.0,103220.0,1.53710819]
[1746856390352,0.06576791,103230.0,103220.0,1.33643612]
[1746856390557,0.06676791,103230.0,103220.0,1.33643612]
[1746856391265,0.06676791,103230.0,103220.0,1.28910819]
[1746856391466,0.37304902,103250.0,103240.0,0.1937136]
[1746856391668,0.56679902,103250.0,103240.0,0.88252946]
[1746856391965,0.48617092,103250.0,103240.0,0.94612946]
[1746856392162,0.51737092,103250.0,103240.0,0.94612946]
[1746856392363,0.51737092,103250.0,103240.0,1.05284481]
[1746856392761,0.51737092,103250.0,103240.0,1.00551688]
[1746856393266,0.52037092,103250.0,103240.0,1.00551688]
[1746856394063,0.52337092,103250.0,103240.0,1.00651688]
[1746856394763,0.52037092,103250.0,103240.0,1.00551688]
[1746856394969,0.52137092,103250.0,103240.0,1.00651688]
[1746856395371,0.52137092,103250.0,103240.0,1.05384481]
[1746856395570,0.4226449,103250.0,103240.0,1.05384481]
[1746856395773,0.4196449,103250.0,103240.0,1.05384481]
[1746856396273,0.4196449,103250.0,103240.0,0.95918895]
[1746856396463,0.4196449,103250.0,103240.0,1.00651688]
[1746856397473,0.4196449,103250.0,103240.0,1.05384481]
[1746856398067,0.4196449,103250.0,103240.0,1.41464481]
[1746856400174,0.4196449,103250.0,103240.0,0.69304481]
[1746856400369,0.4196449,103250.0,103240.0,1.36731688]
[1746856401276,0.4196449,103250.0,103240.0,1.41464481]
[1746856402278,0.4196449,103250.0,103240.0,1.44594481]
[1746856402779,0.4196449,103250.0,103240.0,1.35128895]
[1746856403079,0.4196449,103250.0,103240.0,1.39861688]
[1746856403578,0.22595,103250.0,103240.0,1.39861688]
[1746856403978,0.22595,103250.0,103240.0,1.44594481]
[1746856404765,0.0322,103250.0,103240.0,1.44594481]
[1746856404970,0.22595,103250.0,103240.0,1.44594481]